bitfinex-derivatives/quotes_SOLF0:USTF0_20250630
["timestamp","ask_amount","ask_price","bid_price","bid_amount"]
[1751272341058,5.3324,149.99,149.97,5.87138452]
[1751272341258,5.3322,150.0,149.98,5.87010845]
[1751272341561,5.3322,150.0,149.99,5.86962196]
[1751272341863,5.3317,150.01,149.99,5.86962196]
[1751272342161,5.3317,150.01,149.98,5.3326]
[1751272342358,3.12488751,150.02,149.96,3.12488751]
[1751272342554,3.12488751,150.02,149.97,5.86937751]
[1751272342756,3.12488751,150.02,149.98,5.86937751]
[1751272342955,3.12488751,150.02,149.95,6.21803555]
[1751272343257,3.12488751,150.02,149.96,5.86937751]
[1751272343456,3.12488751,150.02,149.97,5.86937751]
[1751272343659,5.3321,150.0,149.98,5.86937751]
[1751272343856,5.3321,150.0,149.97,5.3329]
[1751272344059,5.3321,150.0,149.98,5.86899819]
[1751272344257,5.3321,150.0,149.97,5.3329]
[1751272344463,5.3321,150.0,149.98,5.8687501]
[1751272344666,5.3321,150.0,149.97,5.3329]
[1751272344963,5.3321,150.0,149.98,5.8687501]
[1751272345158,5.3321,150.0,149.97,5.3329]
[1751272345360,5.3321,150.0,149.98,5.86849064]
[1751272345659,5.3321,150.0,149.97,5.3329]
[1751272345861,5.3321,150.0,149.98,5.86847665]
[1751272346061,5.3321,150.0,149.97,5.3329]
[1751272346264,5.3321,150.0,149.98,5.86847665]
[1751272346462,5.3321,150.0,149.97,5.3329]
[1751272346664,5.3321,150.0,149.98,5.86831695]
[1751272346863,5.3321,150.0,149.97,5.3329]
[1751272347065,5.3321,150.0,149.98,5.86831695]
[1751272347265,5.3321,150.0,149.97,5.3329]
[1751272347465,5.3321,150.0,149.98,5.8681858]
[1751272347661,5.3321,150.0,149.97,5.3329]
[1751272347856,5.3321,150.0,149.98,5.86366468]
[1751272348062,5.3321,150.0,149.97,5.3329]
[1751272348269,5.3321,150.0,149.98,5.86366468]
[1751272348565,5.3321,150.0,149.97,5.3329]
[1751272348765,5.3321,150.0,149.98,5.86372881]
[1751272348964,5.3321,150.0,149.97,5.3329]
[1751272349269,5.3321,150.0,149.98,5.86372881]
[1751272349459,5.3321,150.0,149.97,5.3329]
[1751272349663,5.3321,150.0,149.98,5.86390561]
[1751272349869,5.3321,150.0,149.97,5.3329]
[1751272350062,5.3321,150.0,149.98,5.85469782]
[1751272350264,5.3324,149.99,149.96,5.3333]
[1751272350468,3.12488751,150.01,149.97,5.85471799]
[1751272350668,3.12488751,150.01,149.98,5.85471799]
[1751272350964,3.12488751,150.01,149.95,39.07803555]
[1751272351168,5.3326,149.99,149.96,5.8549882]
[1751272351370,5.3326,149.99,149.97,5.8549882]
[1751272351568,5.3326,149.99,149.98,5.8549882]
[1751272361177,32.86,150.03,149.98,11.1876882]
[1751272361376,3.12488751,150.02,149.99,5.8549882]
[1751272361578,3.12488751,150.02,149.98,5.3327]
[1751272361781,5.3318,150.01,149.99,5.85904995]
[1751272361974,5.3318,150.01,149.98,5.3327]
[1751272362174,5.3318,150.01,149.99,5.86366136]
[1751272362379,5.3318,150.01,150.0,5.86366136]
[1751272364383,5.3318,150.01,150.0,5.86366136]
[1751272366377,5.3314,150.02,150.0,5.86366136]
[1751272366583,5.3314,150.02,150.01,5.86366136]
[1751272369982,8.45588751,150.03,150.01,5.86366136]
[1751272370182,8.45588751,150.03,150.02,5.86366136]
[1751272377988,5.331,150.03,150.02,5.86366136]
[1751272378192,8.45588751,150.03,150.02,5.86366136]
[1751272378587,5.331,150.03,150.02,5.86366136]
[1751272379787,3.12488751,150.05,150.02,5.86366136]
[1751272379788,5.3304,150.05,150.02,5.86366136]
[1751272379987,5.3304,150.05,150.03,5.86366136]
[1751272380187,5.3304,150.05,150.04,5.86366136]
[1751272380388,5.3304,150.05,150.04,9.2958571]
[1751272381292,3.12488751,150.06,150.04,1.1272571]
[1751272381491,32.86,150.05,150.02,6.21803555]
[1751272381689,32.86,150.05,149.98,6.23238354]
[1751272381690,5.3322,150.0,149.98,6.23238354]
[1751272382092,3.12488751,150.01,149.98,6.23238354]
[1751272382498,5.332,150.0,149.98,6.23238354]
[1751272383001,3.12488751,150.01,149.98,6.23238354]
[1751272383208,5.3323,149.99,149.98,6.23238354]
[1751272383501,7.65980444,149.99,149.98,6.23238354]
[1751272385101,2.32750444,149.99,149.97,8.31441745]
[1751272385303,2.32750444,149.98,149.97,8.31441745]
[1751272385505,2.34689097,149.99,149.97,8.31441745]
[1751272385709,5.3321,150.0,149.97,8.31441745]
[1751272385902,2.34689226,149.99,149.97,13.64721745]
[1751272386099,8.45658751,150.01,149.97,8.31441745]
[1751272386304,2.34728146,150.0,149.97,8.31441745]
[1751272386501,2.34728146,149.99,149.98,8.31441745]
[1751272387099,2.34728146,150.0,149.98,41.17441745]
[1751272387304,2.34728146,149.99,149.98,41.17441745]
[1751272387605,2.34728146,149.99,149.98,46.50681745]
[1751272389212,2.34728146,150.0,149.98,46.50681745]
[1751272389410,2.34728146,149.99,149.98,46.50681745]
[1751272389611,2.34728146,150.0,149.98,46.50681745]
[1751272389910,2.34728146,149.99,149.98,46.50681745]
[1751272390212,2.34728146,150.0,149.98,46.50681745]
[1751272390404,2.34728146,149.99,149.98,46.50681745]
[1751272392207,2.34728146,150.0,149.98,46.50681745]
[1751272392409,5.3317,150.01,149.99,5.3323]
[1751272392610,2.34206696,150.0,149.99,5.3323]
[1751272393115,2.34206696,150.0,149.98,46.50691745]
[1751272393313,5.3317,150.01,149.99,5.80527658]
[1751272393513,5.3317,150.01,150.0,5.80527658]
[1751272393713,7.67313194,150.01,150.0,5.80527658]
[1751272397916,10.79801945,150.01,150.0,5.80527658]
[1751272404526,5.3325,149.99,149.95,46.68801745]
[1751272404726,2.34143194,149.98,149.95,46.68801745]
[1751272404926,2.34143194,149.97,149.95,46.68801745]
[1751272405225,8.45738751,149.99,149.96,5.3334]
[1751272405520,2.33539653,149.98,149.96,5.3334]
[1751272405723,8.45738751,149.99,149.96,5.3334]
[1751272406125,2.33539653,149.98,149.96,5.3334]
[1751272406326,8.45738751,149.99,149.96,5.3334]
[1751272406327,2.33539653,149.97,149.96,5.3334]
[1751272407227,2.33539653,149.98,149.97,5.333]
[1751272407527,2.33539653,149.99,149.97,5.333]
[1751272407727,2.33539653,149.98,149.97,5.333]
[1751272407928,2.33539653,150.0,149.97,5.333]
[1751272408126,2.33539653,149.99,149.97,5.333]
[1751272408327,2.33539653,149.98,149.97,5.333]
[1751272408623,7.66706599,150.0,149.97,5.333]
[1751272408928,2.33506599,149.99,149.97,5.333]
[1751272409126,5.332,150.0,149.97,5.333]
[1751272409127,2.33506599,149.98,149.97,5.333]
[1751272409425,2.33506599,149.99,149.97,5.333]
[1751272409627,2.33506599,149.98,149.97,5.333]
[1751272409922,2.33506599,149.99,149.97,5.333]
[1751272410227,2.33506599,149.98,149.97,5.333]
[1751272410526,2.33506599,149.99,149.97,5.333]
[1751272410728,2.33506599,149.98,149.97,5.333]
[1751272410926,2.33506599,149.99,149.97,5.333]
[1751272411126,2.33506599,149.98,149.97,5.333]
[1751272411328,2.33506599,150.0,149.98,5.3325]
[1751272411531,2.33506599,149.99,149.98,5.3325]
[1751272415434,2.33506599,149.99,149.97,5.3329]
[1751272415728,2.33530247,149.98,149.96,8.31282216]
[1751272416026,3.12488751,150.0,149.96,8.31282216]
[1751272416226,2.33530125,149.99,149.97,5.3328]
[1751272416429,2.33530125,149.98,149.97,5.3328]
[1751272416624,2.33530125,149.99,149.97,11.11664513]
[1751272416825,5.3323,150.0,149.98,5.78384513]
[1751272417025,5.3323,150.0,149.99,5.78384513]
[1751272417225,7.66761256,150.0,149.99,5.78384513]
[1751272418035,2.33531256,150.0,149.95,8.31282216]
[1751272418226,5.333,149.98,149.96,5.78418582]
[1751272418426,2.33531256,149.97,149.94,33.04]
[1751272418627,2.33531256,149.96,149.94,33.04]
[1751272418927,2.3344361,149.97,149.94,33.04]
[1751272419228,3.12488751,150.0,149.94,33.04]
[1751272419529,2.33428418,149.99,149.94,33.04]
[1751272419731,7.66718418,149.98,149.94,46.68682216]
[1751272420030,7.66718418,149.98,149.94,41.35282216]
[1751272420031,2.33428418,149.97,149.94,41.35282216]
[1751272420232,2.33428418,149.96,149.94,41.35282216]
[1751272420434,2.33428418,149.97,149.94,44.47770967]
[1751272420628,2.33428418,150.0,149.94,44.47770967]
[1751272420829,2.33428418,149.99,149.94,44.47770967]
[1751272421125,5.3322,150.0,149.96,5.3334]
[1751272421831,3.12488751,149.99,149.94,8.31282216]
[1751272422227,5.3329,149.98,149.94,13.64672216]
[1751272422736,5.3329,149.98,149.94,5.3339]
[1751272423432,5.3331,149.97,149.94,5.3339]
[1751272423735,5.3331,149.97,149.94,13.64672216]
[1751272426234,5.3331,149.97,149.94,5.3339]
[1751272428838,5.3328,149.98,149.94,5.3339]
[1751272429032,5.3328,149.98,149.95,5.3337]
[1751272429231,3.12488751,150.02,149.95,3.12488751]
[1751272429432,5.3325,149.99,149.95,3.12488751]
[1751272429637,5.3325,149.99,149.94,8.31282216]
[1751272430045,5.3325,149.99,149.95,5.72581896]
[1751272430342,5.3325,149.99,149.96,5.72581896]
[1751272430539,5.3325,149.99,149.97,5.72581896]
[1751272430738,5.3325,149.99,149.98,5.72581896]
[1751272432741,5.3321,150.0,149.98,5.72581896]
[1751272433042,5.3321,150.0,149.99,5.72581896]
[1751272447760,7.08482965,150.0,149.99,5.72581896]
[1751272457158,5.3321,150.0,149.99,5.72581896]
[1751272457361,7.08482965,150.0,149.99,5.72581896]
[1751272460958,5.333,149.97,149.96,6.23840478]
[1751272461157,7.08572965,149.97,149.96,6.23840478]
[1751272462959,5.3337,149.95,149.94,6.23840478]
[1751272463166,7.08642965,149.95,149.92,6.23840478]
[1751272463461,1.75272965,149.93,149.92,6.23840478]
[1751272466464,1.75272965,149.94,149.92,6.23840478]
[1751272466966,1.75272965,149.93,149.92,6.23840478]
[1751272467756,5.3342,149.94,149.92,6.23840478]
[1751272467962,7.08722965,149.93,149.92,6.23840478]
[1751272468765,5.3345,149.93,149.92,6.23840478]
[1751272468965,7.08722965,149.93,149.92,6.23840478]
[1751272469563,7.08722965,149.93,149.91,6.23840478]
[1751272469762,5.3345,149.93,149.92,6.23840478]
[1751272469958,7.08722965,149.93,149.92,6.23840478]
[1751272470167,7.08722965,149.93,149.91,6.23840478]
[1751272470364,1.75272965,149.92,149.91,6.23840478]
[1751272470762,7.08752965,149.92,149.91,6.23840478]
[1751272472974,1.75272965,149.92,149.91,11.95388697]
[1751272474071,7.08732965,149.93,149.91,11.95388697]
[1751272474271,7.08732965,149.93,149.92,5.71548219]
[1751272475267,1.75272965,149.93,149.92,5.71548219]
[1751272477269,7.08722965,149.93,149.92,5.71548219]
[1751272478677,7.08722965,149.93,149.9,5.3353]
[1751272478883,1.75272965,149.92,149.9,5.3353]
[1751272481482,1.75272965,149.91,149.77,10.6798]
[1751272481677,1.75272965,149.86,149.83,37.9805]
[1751272482083,1.75272965,149.86,149.84,10.12254041]
[1751272482383,1.75272965,149.87,149.84,10.12254041]
[1751272482781,1.75272965,149.85,149.84,4.78494041]
[1751272483575,1.75272965,149.85,149.79,2.2107]
[1751272483782,2.74479263,149.87,149.79,2.2107]
[1751272483974,2.74479263,149.85,149.79,2.2107]
[1751272484179,33.34,149.88,149.79,2.2107]
[1751272484479,2.74479263,149.85,149.79,4.95549263]
[1751272484681,5.3379,149.84,149.8,5.3389]
[1751272484884,2.74479263,149.87,149.79,4.95549263]
[1751272485388,2.74479263,149.85,149.79,2.2107]
[1751272485683,33.34,149.88,149.77,33.36]
[1751272485684,2.74479263,149.83,149.77,33.36]
[1751272486080,2.74479263,149.81,149.77,38.7]
[1751272486379,2.74479263,149.81,149.77,33.36]
[1751272486584,5.3394,149.8,149.77,33.36]
[1751272486985,2.74479263,149.81,149.77,33.36]
[1751272487184,8.08369263,149.81,149.78,5.3398]
[1751272487483,8.08369263,149.81,149.77,33.36]
[1751272487678,2.74479263,149.79,149.73,2.2822]
[1751272488079,2.74479263,149.77,149.73,2.2822]
[1751272488280,8.08459263,149.78,149.73,7.6238]
[1751272488590,2.74479263,149.78,149.73,7.6238]
[1751272488783,5.3398,149.78,149.74,5.3412]
[1751272488978,2.74479263,149.81,149.74,2.74479263]
[1751272489183,2.74479263,149.81,149.73,5.02699263]
[1751272489484,2.74479263,149.77,149.73,2.2822]
[1751272489684,2.74479263,149.75,149.72,4.61]
[1751272490589,5.3415,149.74,149.72,4.61]
[1751272490780,36.10479263,149.78,149.72,4.61]
[1751272491181,5.3405,149.76,149.72,12.1972]
[1751272491993,2.74479263,149.73,149.64,4.84329335]
[1751272492192,2.74479263,149.74,149.64,4.84329335]
[1751272492394,2.74479263,149.68,149.64,4.84329335]
[1751272492594,2.253,149.75,149.64,4.84329335]
[1751272492797,2.74479263,149.71,149.65,6.68776667]
[1751272492993,2.74479263,149.71,149.66,6.68776667]
[1751272493294,2.74479263,149.73,149.67,6.67885016]
[1751272493496,33.38,149.75,149.67,37.9838]
[1751272493690,33.38,149.75,149.71,5.3423]
[1751272493890,2.74479263,149.76,149.7,2.74479263]
[1751272494091,2.74479263,149.74,149.71,6.67764327]
[1751272494392,2.74479263,149.72,149.67,37.9838]
[1751272495096,5.3417,149.73,149.68,5.3431]
[1751272495296,33.38,149.78,149.67,37.9838]
[1751272495495,2.74479263,149.73,149.67,37.9838]
[1751272495693,5.3419,149.73,149.67,37.9838]
[1751272495895,2.74479263,149.74,149.67,40.72859263]
[1751272496299,8.08609263,149.74,149.69,5.343]
[1751272496797,8.08609263,149.74,149.65,33.38]
[1751272496798,2.74479263,149.7,149.65,33.38]
[1751272497398,2.74479263,149.7,149.65,38.7244]
[1751272498000,8.08769263,149.7,149.65,38.7244]
[1751272498196,2.74479263,149.7,149.65,33.38]
[1751272498695,2.74479263,149.66,149.64,4.84329335]
[1751272498900,36.12479263,149.66,149.64,4.84329335]
[1751272499194,33.38,149.66,149.64,4.84329335]
[1751272499400,36.12479263,149.69,149.64,4.84329335]
[1751272499602,600.8,149.74,149.64,4.84329335]
[1751272499799,2.74479263,149.71,149.64,7.58808598]
[1751272500100,2.74479263,149.71,149.65,5.3444]
[1751272500297,33.38,149.73,149.64,4.84329335]
[1751272500298,5.3431,149.69,149.64,4.84329335]
[1751272500801,2.74479263,149.68,149.64,4.84329335]
[1751272500998,5.48958526,149.66,149.64,4.84329335]
[1751272501197,5.48958526,149.6,149.33,594.0]
[1751272501390,8.09159263,149.59,149.51,2.74479263]
[1751272501597,2.74479263,149.59,149.52,6.64808095]
[1751272501792,2.74479263,149.59,149.53,6.64808095]
[1751272501998,2.74479263,149.59,149.54,11.33768095]
[1751272502301,2.74479263,149.6,149.54,4.6896]
[1751272502902,2.74479263,149.6,149.57,5.3473]
[1751272503105,2.74479263,149.6,149.55,2.3534]
[1751272503400,2.74479263,149.62,149.58,5.3466]
[1751272503594,2.74479263,149.62,149.56,6.77348927]
[1751272503595,2.74479263,149.62,149.55,38.49819263]
[1751272503792,2.74479263,149.62,149.56,6.77336393]
[1751272503992,2.74479263,149.62,149.58,5.3467]
[1751272504299,605.4035,149.65,149.53,2.74479263]
[1751272504497,2.74479263,149.61,149.56,5.3474]
[1751272504893,2.1608,149.71,149.57,2.74479263]
[1751272505093,2.74479263,149.65,149.58,6.76777909]
[1751272505297,5.3448,149.64,149.58,33.4]
[1751272505501,5.3448,149.64,149.59,6.76392872]
[1751272505702,167.1806,149.7,149.58,36.14479263]
[1751272505899,2.74479263,149.66,149.59,6.76374114]
[1751272506201,2.74479263,149.66,149.61,5.3456]
[1751272506701,2.74479263,149.64,149.59,5.3464]
[1751272507504,8.08969263,149.64,149.59,5.3464]
[1751272507706,8.08969263,149.64,149.6,5.3462]
[1751272507910,8.08959263,149.64,149.6,5.3462]
[1751272508507,5.3452,149.63,149.59,5.3465]
[1751272509310,8.08969263,149.64,149.59,5.3465]
[1751272510506,5.3452,149.63,149.59,5.3465]
[1751272510909,2.75182778,149.62,149.57,33.42]
[1751272511109,2.75268172,149.61,149.57,33.42]
[1751272511610,8.09868172,149.61,149.55,2.3053]
[1751272512006,2.3606,149.7,149.6,5.3462]
[1751272512211,2.75132886,149.65,149.57,2.75132886]
[1751272512409,2.75132886,149.65,149.58,6.83674779]
[1751272512708,33.42,149.69,149.59,2.75132886]
[1751272512910,2.75132886,149.68,149.59,2.75132886]
[1751272513105,2.75132886,149.68,149.62,5.3453]
[1751272513312,5.344,149.67,149.6,4.98982886]
[1751272513715,33.42,149.69,149.6,4.98982886]
[1751272513909,2.75132886,149.68,149.61,6.83767735]
[1751272514114,2.75132886,149.68,149.61,2.1599]
[1751272514316,2.75132886,149.68,149.62,9.07905567]
[1751272514506,42.99319997,149.69,149.62,2.2398]
[1751272514915,37.64989997,149.69,149.64,5.3445]
[1751272515415,5.3436,149.68,149.64,5.3445]
[1751272515817,8.09349997,149.68,149.64,5.3445]
[1751272516818,5.3438,149.67,149.63,5.3451]
[1751272517119,5.3438,149.67,149.61,2.1599]
[1751272517320,2.74989997,149.66,149.6,2.2385]
[1751272517514,2.74989997,149.66,149.58,33.42]
[1751272517815,2.74989997,149.64,149.59,6.8490237]
[1751272518021,8.09479997,149.64,149.6,5.3462]
[1751272521124,8.09479997,149.64,149.61,6.86677257]
[1751272521326,5.3449,149.64,149.58,33.42]
[1751272521523,5.3449,149.64,149.59,6.86677161]
[1751272521724,5.3449,149.64,149.6,6.86677161]
[1751272521925,5.3449,149.64,149.61,6.86677161]
[1751272522122,5.3449,149.64,149.58,33.42]
[1751272522322,5.3449,149.64,149.59,6.83727594]
[1751272522523,5.3449,149.64,149.6,6.83727594]
[1751272522723,5.3449,149.64,149.61,6.83727594]
[1751272522924,5.3449,149.64,149.58,33.42]
[1751272523124,5.3449,149.64,149.59,6.83733799]
[1751272523426,37.64989997,149.65,149.6,6.83733799]
[1751272523625,37.64989997,149.65,149.58,33.42]
[1751272523924,37.64989997,149.65,149.59,6.84465018]
[1751272524125,37.64989997,149.65,149.6,6.84465018]
[1751272524424,5.3455,149.63,149.61,6.84465018]
[1751272524625,5.3455,149.63,149.59,5.3464]
[1751272524825,5.3455,149.63,149.6,6.85256943]
[1751272525123,5.3455,149.63,149.61,6.85256943]
[1751272525317,5.3455,149.63,149.62,6.85256943]
[1751272526022,8.09715513,149.63,149.54,4.6836]
[1751272526226,2.75165513,149.58,149.55,6.86244525]
[1751272526427,2.75419401,149.57,149.5,4.98379401]
[1751272526628,5.3482,149.55,149.5,4.98379401]
[1751272527322,2.75419401,149.57,149.5,4.98379401]
[1751272527520,2.75419401,149.59,149.52,2.75419401]
[1751272528128,2.75419401,149.57,149.5,4.98379401]
[1751272528428,2.75419401,149.57,149.5,7.5792]
[1751272528625,2.75419401,149.57,149.5,10.33339401]
[1751272528928,5.3486,149.54,149.5,10.33339401]
[1751272529129,2.75419401,149.57,149.5,2.2296]
[1751272529430,2.75419401,149.57,149.5,4.98379401]
[1751272529830,2.75419401,149.57,149.5,10.33349401]
[1751272530129,2.75419401,149.57,149.5,7.5793]
[1751272530332,2.75419401,149.57,149.5,10.33349401]
[1751272530633,5.3486,149.54,149.5,10.33349401]
[1751272530831,2.75419401,149.59,149.5,4.98379401]
[1751272531329,5.3478,149.56,149.52,5.3488]
[1751272531633,2.75419401,149.59,149.52,2.75419401]
[1751272531827,5.3472,149.58,149.54,5.3483]
[1751272533530,5.3472,149.58,149.55,5.348]
[1751272533731,5.3467,149.59,149.55,5.348]
[1751272534133,37.65419401,149.6,149.54,5.3482]
[1751272534332,5.3472,149.58,149.54,5.3482]
[1751272534833,5.3472,149.58,149.55,5.3479]
[1751272535335,5.3472,149.58,149.56,6.6000879]
[1751272535634,5.3472,149.58,149.57,6.6000879]
[1751272537037,5.3472,149.58,149.57,12.31055339]
[1751272537334,37.65252232,149.62,149.57,12.31055339]
[1751272537534,37.65252232,149.62,149.58,12.31055339]
[1751272537732,2.75252232,149.64,149.59,18.51762527]
[1751272537935,2.75252232,149.64,149.6,12.31055339]
[1751272538134,2.75252232,149.64,149.61,12.31055339]
[1751272538337,34.9,149.68,149.62,19.20184441]
[1751272538633,2.75252232,149.67,149.63,25.40891629]
[1751272538932,2.75252232,149.67,149.64,19.20184441]
[1751272539134,2.75252232,149.67,149.65,19.20184441]
[1751272539336,2.75252232,149.69,149.66,19.20184441]
[1751272539536,2.75252232,149.69,149.67,19.20184441]
[1751272539837,8.09552232,149.69,149.68,19.20184441]
[1751272540237,8.09552232,149.69,149.68,19.29442653]
[1751272540438,8.09552232,149.69,149.68,6.89129102]
[1751272541639,5.343,149.69,149.68,6.89129102]
[1751272541837,8.09552232,149.69,149.68,6.89129102]
[1751272542941,5.3452,149.63,149.62,6.20707188]
[1751272543134,5.3452,149.63,149.62,5.80824221]
[1751272543135,37.59211049,149.63,149.62,5.80824221]
[1751272543539,40.1852,149.63,149.62,5.80824221]
[1751272543938,37.59152403,149.63,149.56,6.20707188]
[1751272544137,2.75152403,149.6,149.56,6.20707188]
[1751272544338,5.347,149.58,149.56,6.20707188]
[1751272544537,2.75152403,149.6,149.55,6.20707188]
[1751272544832,5.3467,149.59,149.55,6.20707188]
[1751272545033,2.75152403,149.6,149.54,11.55517188]
[1751272545232,2.75152403,149.6,149.55,11.55507188]
[1751272545441,5.347,149.58,149.55,6.20707188]
[1751272546846,5.3467,149.59,149.55,11.55497188]
[1751272547036,5.3467,149.59,149.56,6.20707188]
[1751272547344,5.3471,149.58,149.55,11.55497188]
[1751272547545,5.3471,149.58,149.55,5.3479]
[1751272549448,4.71935133,149.61,149.54,11.55547188]
[1751272550049,5.3474,149.57,149.54,5.3484]
[1751272550848,5.3471,149.58,149.54,5.3484]
[1751272551044,39.55926428,149.62,149.55,5.3479]
[1751272551448,5.3463,149.6,149.55,5.3479]
[1751272551850,39.55926428,149.62,149.55,11.55497188]
[1751272552243,5.3467,149.59,149.55,5.3479]
[1751272552446,5.3467,149.59,149.56,5.3475]
[1751272553853,34.84,149.63,149.55,11.55507188]
[1751272554050,4.71926428,149.63,149.55,6.20707188]
[1751272554351,5.346,149.61,149.57,5.3473]
[1751272555251,4.71926428,149.62,149.56,6.20707188]
[1751272555451,4.71926428,149.6,149.56,6.20707188]
[1751272555647,4.71926428,149.6,149.55,11.55497188]
[1751272555947,4.71926428,149.6,149.56,5.76473881]
[1751272556150,4.71926428,149.6,149.57,5.76473881]
[1751272556351,4.71926428,149.6,149.55,11.55497188]
[1751272556352,4.71926428,149.6,149.58,5.76473881]
[1751272556545,10.06546428,149.6,149.59,5.76473881]
[1751272557153,5.3462,149.6,149.59,5.76473881]
[1751272559153,34.84,149.63,149.59,5.76473881]
[1751272559352,34.84,149.63,149.6,5.76473881]
[1751272559659,39.55926428,149.64,149.58,5.3469]
[1751272559854,5.3458,149.62,149.59,11.11748751]
[1751272560048,5.3458,149.62,149.57,6.20707188]
[1751272560049,5.3458,149.62,149.6,5.77088751]
[1751272560248,5.3458,149.62,149.57,6.20707188]
[1751272560549,39.55926428,149.64,149.58,11.11778697]
[1751272560749,39.55926428,149.64,149.59,5.77088697]
[1751272561055,34.84,149.64,149.6,5.77088697]
[1751272561251,4.71926428,149.62,149.56,41.04707188]
[1751272561451,4.71926428,149.6,149.57,5.77216009]
[1751272561656,5.3468,149.59,149.58,5.77216009]
[1751272564658,10.06556428,149.6,149.58,5.77216009]
[1751272564863,5.3463,149.6,149.59,5.77216009]
[1751272567057,5.346,149.61,149.59,5.77216009]
[1751272567251,4.71926428,149.62,149.56,6.20707188]
[1751272567448,4.71926428,149.62,149.57,5.76724941]
[1751272567651,5.3466,149.6,149.58,5.76724941]
[1751272567847,2.75273823,149.61,149.59,5.76724941]
[1751272568058,2.7522128,149.62,149.6,5.76724941]
[1751272568360,5.3459,149.61,149.57,6.20707188]
[1751272568660,5.3459,149.61,149.58,5.76780296]
[1751272568856,5.3459,149.61,149.59,5.76780296]
[1751272569055,5.3459,149.61,149.57,6.20707188]
[1751272569056,5.3459,149.61,149.6,5.76780296]
[1751272570067,8.09869893,149.61,149.6,5.76780296]
[1751272570963,8.09869893,149.61,149.57,5.347]
[1751272571261,8.09869893,149.61,149.58,5.76867823]
[1751272571461,8.09869893,149.61,149.59,5.76867823]
[1751272571654,8.09869893,149.61,149.57,5.347]
[1751272571655,8.09869893,149.61,149.6,5.76867823]
[1751272575765,5.3456,149.62,149.6,5.76867823]
[1751272575966,2.75239592,149.63,149.61,5.76867823]
[1751272576167,37.53192484,149.64,149.62,5.76867823]
[1751272576361,5.3456,149.62,149.59,5.3465]
[1751272576566,5.3456,149.62,149.6,5.77320987]
[1751272576764,5.3456,149.62,149.61,5.77320987]
[1751272580266,8.09730947,149.62,149.61,5.77320987]
[1751272580467,8.09814971,149.62,149.61,5.77320987]
[1751272581673,5.3469,149.58,149.57,6.20707188]
[1751272581873,2.75254971,149.58,149.55,6.20707188]
[1751272582074,2.75254971,149.58,149.54,6.20707188]
[1751272582372,5.3475,149.57,149.54,6.20707188]
[1751272582773,2.75254971,149.6,149.55,6.20707188]
[1751272583476,5.3468,149.59,149.55,11.55477188]
[1751272584881,5.347,149.58,149.55,11.55477188]
[1751272585480,5.347,149.58,149.56,6.20707188]
[1751272588080,5.347,149.58,149.55,6.20707188]
[1751272588984,2.75254971,149.59,149.55,6.20707188]
[1751272589586,5.3474,149.57,149.55,6.20707188]
[1751272590189,5.3477,149.56,149.55,6.20707188]
[1751272590386,34.78,149.6,149.54,11.55537188]
[1751272590583,2.75254971,149.59,149.55,6.20707188]
[1751272590889,34.78,149.6,149.57,5.3472]
[1751272591089,34.78,149.6,149.57,11.55427188]
[1751272591790,40.1264,149.6,149.57,11.55427188]
[1751272593189,40.1264,149.6,149.57,6.20707188]
[1751272593794,40.1264,149.6,149.58,5.76800866]
[1751272593985,40.1264,149.6,149.59,5.76800866]
[1751272602691,5.3464,149.6,149.59,5.76800866]
[1751272602891,2.75254971,149.62,149.59,5.76800866]
[1751272603092,2.75254971,149.62,149.6,5.76800866]
[1751272603294,2.75254971,149.62,149.61,5.76800866]
[1751272603494,8.09804971,149.62,149.61,5.76800866]
[1751272604895,5.3455,149.62,149.61,5.76800866]
[1751272608406,5.3455,149.62,149.61,8.66e-06]
[1751272608599,37.53254971,149.63,149.55,6.20707188]
[1751272608804,2.75254971,149.58,149.55,6.20707188]
[1751272609203,5.3477,149.56,149.55,6.20707188]
[1751272609403,5.3477,149.56,149.54,6.20707188]
[1751272611208,5.348,149.55,149.54,6.20707188]
[1751272611606,2.75254971,149.58,149.54,6.20707188]
[1751272612111,5.348,149.56,149.54,6.20707188]
[1751272612503,2.75254971,149.58,149.54,6.20707188]
[1751272613504,5.348,149.55,149.54,6.20707188]
[1751272614800,34.42,149.55,149.46,8.33354076]
[1751272615106,34.42,149.55,149.45,4.90164628]
[1751272615107,2.75254971,149.51,149.45,4.90164628]
[1751272615311,5.3499,149.5,149.45,13.00569599]